bitfinex-derivatives/quotes_BTCF0:USTF0_20250508
["timestamp","ask_amount","ask_price","bid_price","bid_amount"]
[1746667891992,0.2049573,98045.0,98044.0,1.31963302]
[1746667892198,0.2049573,98045.0,98044.0,1.32263302]
[1746667893704,0.2049573,98045.0,98044.0,1.23859302]
[1746667893905,0.2049573,98045.0,98044.0,1.32263302]
[1746667895207,0.00750207,98068.0,98044.0,1.32263302]
[1746667895208,0.0509723,98078.0,98054.0,0.2039386]
[1746667895401,0.2054365,98055.0,98054.0,0.5647386]
[1746667896304,0.2054365,98055.0,98054.0,0.7327386]
[1746667896804,0.2054365,98055.0,98054.0,0.5288]
[1746667897008,0.2164365,98055.0,98054.0,0.5308]
[1746667897201,0.3520365,98055.0,98054.0,0.3628]
[1746667897406,0.4918365,98055.0,98054.0,0.3628]
[1746667898100,0.6598365,98055.0,98054.0,0.3628]
[1746667898304,0.6598365,98055.0,98054.0,0.34493781]
[1746667898504,0.6558365,98055.0,98054.0,0.31319269]
[1746667899012,0.5998365,98055.0,98054.0,0.31219269]
[1746667899200,0.5998365,98055.0,98054.0,0.31519269]
[1746667899404,0.6018365,98055.0,98054.0,0.31019269]
[1746667899602,0.6018365,98055.0,98054.0,0.30719269]
[1746667899810,0.6078365,98055.0,98054.0,0.30819269]
[1746667900212,0.6098365,98055.0,98054.0,0.30819269]
[1746667900811,0.4700365,98055.0,98054.0,0.51213129]
[1746667901213,0.3608,98094.0,98069.0,0.0509763]
[1746667901413,0.0509678,98087.0,98080.0,0.050971]
[1746667901615,0.134,98086.0,98085.0,0.2038741]
[1746667901817,0.134,98086.0,98085.0,0.59504404]
[1746667902408,0.134,98086.0,98085.0,0.86884404]
[1746667902611,0.3378721,98086.0,98085.0,0.86884404]
[1746667903114,0.0015,98090.0,98085.0,0.85296194]
[1746667903420,0.2038486,98098.0,98097.0,0.2038471]
[1746667903621,0.2038486,98098.0,98097.0,0.5646471]
[1746667903917,0.09324522,98105.0,98097.0,0.3608]
[1746667904220,0.2038232,98115.0,98114.0,0.254755]
[1746667904410,0.3340232,98115.0,98114.0,0.615555]
[1746667904613,0.4359298,98115.0,98114.0,0.3608]
[1746667905015,0.4359298,98115.0,98105.0,0.1288]
[1746667905016,0.2038326,98105.0,98104.0,0.5646329]
[1746667905820,0.4708326,98105.0,98104.0,0.3608]
[1746667906021,0.6105326,98105.0,98104.0,0.3608]
[1746667906317,0.6105326,98105.0,98104.0,0.5646346]
[1746667907225,0.7785326,98105.0,98104.0,0.34294745]
[1746667907714,0.7785326,98105.0,98104.0,0.34494745]
[1746667907920,0.7795326,98105.0,98104.0,0.34994745]
[1746667908121,0.6115326,98105.0,98104.0,0.34994745]
[1746667908314,0.6125326,98105.0,98104.0,0.34794745]
[1746667908714,0.2038409,98101.0,98100.0,0.2038424]
[1746667909317,0.2088362,98105.0,98104.0,0.2038346]
[1746667909920,0.005,98105.0,98104.0,0.2038346]
[1746667910117,0.005,98105.0,98104.0,0.3718346]
[1746667910620,0.2038263,98108.0,98107.0,0.2038284]
[1746667911229,0.2038263,98108.0,98107.0,0.3718284]
[1746667912132,0.2038263,98108.0,98107.0,0.3768284]
[1746667912624,0.2038263,98108.0,98107.0,0.3758284]
[1746667913124,0.3331263,98108.0,98107.0,0.3758284]
[1746667913324,0.3341263,98108.0,98107.0,0.3818284]
[1746667914329,0.3341263,98108.0,98107.0,0.01]
[1746667914921,0.3341263,98108.0,98107.0,0.004]
[1746667915117,0.5021263,98108.0,98107.0,0.009]
[1746667915325,0.5021263,98108.0,98107.0,0.008]
[1746667915826,0.2973,98108.0,98107.0,0.001]
[1746667916130,0.5051263,98108.0,98107.0,0.001]
[1746667916730,0.2038409,98101.0,98100.0,0.3608]
[1746667917037,0.2548109,98099.0,98098.0,0.2038452]
[1746667917527,0.2548109,98099.0,98096.0,0.3608]
[1746667917528,0.2038492,98097.0,98096.0,0.3608]
[1746667917735,0.2038575,98093.0,98092.0,0.2875788]
[1746667919233,0.2048575,98093.0,98092.0,0.5366788]
[1746667920633,0.2048575,98093.0,98092.0,0.5396788]
[1746667921141,0.2048575,98093.0,98092.0,0.5386788]
[1746667921533,0.2048575,98093.0,98092.0,0.5356788]
[1746667921735,0.2048575,98093.0,98092.0,0.5386788]
[1746667922140,0.2038575,98093.0,98092.0,0.5306788]
[1746667922332,0.2048575,98093.0,98092.0,0.5386788]
[1746667922639,0.2048575,98093.0,98092.0,0.3280588]
[1746667923435,0.3235575,98093.0,98092.0,0.3280588]
[1746667924034,0.3235575,98093.0,98092.0,0.3250588]
[1746667924238,0.3235575,98093.0,98092.0,0.3280588]
[1746667924632,0.3235575,98093.0,98092.0,0.3250588]
[1746667924831,0.3235575,98093.0,98092.0,0.3230588]
[1746667925028,0.3235575,98093.0,98092.0,0.3280588]
[1746667925230,0.3235575,98093.0,98092.0,0.3250588]
[1746667925435,0.3235575,98093.0,98092.0,0.3270588]
[1746667925835,0.3225575,98093.0,98092.0,0.3270588]
[1746667928036,1.0353015,98093.0,98092.0,1e-07]
[1746667928226,1.2033015,98093.0,98092.0,0.0020001]
[1746667928426,1.2033015,98093.0,98092.0,0.0050001]
[1746667928629,1.3285015,98093.0,98092.0,0.0050001]
[1746667928831,1.3285015,98093.0,98092.0,0.006]
[1746667929138,1.3285015,98093.0,98092.0,0.00423691]
[1746667929329,1.3285015,98093.0,98092.0,0.001]
[1746667929530,0.2038928,98076.0,98067.0,0.5647114]
[1746667929730,0.2038928,98076.0,98069.0,0.1251]
[1746667929925,0.2038928,98076.0,98067.0,0.3608]
[1746667930132,0.3718928,98076.0,98067.0,0.3608]
[1746667930433,0.6178928,98076.0,98067.0,0.3608]
[1746667930639,0.6178928,98076.0,98069.0,0.0315297]
[1746667931033,0.6178928,98076.0,98073.0,0.116]
[1746667932035,0.6248928,98076.0,98075.0,0.00201962]
[1746667932944,0.6328928,98076.0,98075.0,0.00201962]
[1746667937346,0.6328928,98076.0,98075.0,0.00066607]
[1746667938045,0.6328928,98076.0,98075.0,0.56536097]
[1746667938046,0.3868928,98076.0,98075.0,0.56536097]
[1746667938246,0.3608,98093.0,98075.0,0.56536097]
[1746667938247,0.0509667,98089.0,98088.0,0.3057913]
[1746667938543,0.2548325,98089.0,98088.0,0.2038596]
[1746667939546,0.2648325,98089.0,98088.0,0.2048596]
[1746667939739,0.2738325,98089.0,98088.0,0.2058596]
[1746667941141,0.2648325,98089.0,98088.0,0.2068596]
[1746667941434,0.2648325,98089.0,98088.0,0.003]
[1746667941747,0.2548325,98089.0,98088.0,0.005]
[1746667942648,0.2548325,98089.0,98088.0,0.2088679]
[1746667944446,0.2548325,98089.0,98088.0,0.2108679]
[1746667945445,0.2038658,98089.0,98088.0,0.2108679]
[1746667945648,0.2548294,98091.0,98090.0,0.2038637]
[1746667945847,0.2038585,98093.0,98092.0,0.2548198]
[1746667946056,0.2038585,98093.0,98092.0,0.4975198]
[1746667946440,0.2038585,98093.0,98092.0,0.8583198]
[1746667946850,0.2048585,98093.0,98092.0,0.8653198]
[1746667948046,0.2048585,98093.0,98092.0,0.8693198]
[1746667948447,0.2048585,98093.0,98092.0,0.8683198]
[1746667948848,0.2048585,98093.0,98092.0,0.8653198]
[1746667949045,0.2038585,98093.0,98092.0,0.8613198]
[1746667949354,0.2048585,98093.0,98092.0,0.8663198]
[1746667949545,0.3191585,98093.0,98092.0,0.8663198]
[1746667951152,0.3191585,98093.0,98092.0,0.8653198]
[1746667952048,0.3191585,98093.0,98092.0,0.8643198]
[1746667953949,0.3191585,98093.0,98092.0,0.488]
[1746667954149,0.3191585,98093.0,98092.0,0.006]
[1746667954746,0.4369585,98093.0,98092.0,0.006]
[1746667955147,0.6049585,98093.0,98092.0,0.006]
[1746667955454,0.3728585,98093.0,98092.0,0.5706596]
[1746667955656,0.3728585,98093.0,98092.0,0.8086596]
[1746667955953,0.3728585,98093.0,98092.0,0.79080578]
[1746667956155,0.2048585,98093.0,98092.0,0.79080578]
[1746667958047,0.001,98093.0,98092.0,0.95880578]
[1746667958857,0.2048575,98093.0,98092.0,0.95880578]
[1746667959157,0.07223559,98104.0,98101.0,0.2547964]
[1746667959453,0.32703119,98104.0,98103.0,0.2038367]
[1746667959759,0.07223559,98104.0,98103.0,0.2038367]
[1746667959949,0.07223559,98104.0,98103.0,0.3193367]
[1746667960144,0.07223559,98104.0,98103.0,0.7054687]
[1746667960356,0.0509534,98118.0,98117.0,0.2037931]
[1746667961056,0.0509534,98118.0,98117.0,0.4430931]
[1746667961659,0.30573,98118.0,98117.0,0.4430931]
[1746667961956,0.30573,98118.0,98117.0,0.2393]
[1746667962155,0.30573,98118.0,98117.0,0.26582673]
[1746667962361,0.30573,98118.0,98117.0,0.26682673]
[1746667962558,0.30573,98118.0,98117.0,0.47263433]
[1746667963461,0.30673,98118.0,98117.0,0.02752673]
[1746667964165,0.30673,98118.0,98117.0,0.02652673]
[1746667964352,0.30673,98118.0,98117.0,0.001]
[1746667964553,0.2038284,98107.0,98106.0,0.02664243]
[1746667964757,0.203845,98099.0,98098.0,0.118]
[1746667965054,0.0509606,98101.0,98097.0,0.34294602]
[1746667965055,0.2038471,98098.0,98097.0,0.34294602]
[1746667965253,0.2038471,98098.0,98079.0,0.3608]
[1746667965254,0.2038637,98090.0,98089.0,0.3608]
[1746667965662,0.4421637,98090.0,98089.0,0.38733211]
[1746667965961,0.2038824,98081.0,98080.0,0.2317]
[1746667966257,0.2038845,98080.0,98079.0,0.3608]
[1746667966454,0.3205845,98080.0,98079.0,0.3608]
[1746667966660,0.2038928,98076.0,98071.0,0.0274819]
[1746667966862,0.5646928,98076.0,98064.0,0.3608]
[1746667967056,0.5646928,98076.0,98067.0,0.2039109]
[1746667967357,0.3718928,98076.0,98075.0,0.20491452]
[1746667967554,0.3718928,98076.0,98075.0,0.00101962]
[1746667967959,0.3718928,98076.0,98075.0,0.20491452]
[1746667968158,0.2038928,98076.0,98075.0,0.00401962]
[1746667968955,0.2048928,98076.0,98075.0,0.00901962]
[1746667969663,0.2048928,98076.0,98075.0,0.21291452]
[1746667969863,0.2048928,98076.0,98075.0,0.00901962]
[1746667970464,0.2048928,98076.0,98075.0,0.21291452]
[1746667970851,0.2048928,98076.0,98075.0,0.00901962]
[1746667971761,0.2048928,98076.0,98075.0,0.21291452]
[1746667972159,0.3728928,98076.0,98075.0,0.21291452]
[1746667973264,0.3728928,98076.0,98075.0,0.2038949]
[1746667973467,0.3728928,98076.0,98073.0,0.2382]
[1746667973468,0.203897,98074.0,98073.0,0.2382]
[1746667973668,0.203897,98074.0,98073.0,0.4420991]
[1746667974771,0.203897,98074.0,98073.0,0.4460991]
[1746667975273,0.204897,98074.0,98073.0,0.4500991]
[1746667978375,0.001,98074.0,98073.0,0.4500991]
[1746667978783,0.204897,98074.0,98073.0,0.4500991]
[1746667979178,0.204897,98074.0,98073.0,0.6180991]
[1746667979483,0.001,98074.0,98073.0,0.6180991]
[1746667979882,0.204897,98074.0,98073.0,0.6180991]
[1746667980382,0.204897,98074.0,98073.0,0.4500991]
[1746667981774,0.001,98074.0,98073.0,0.4500991]
[1746667981981,0.204897,98074.0,98073.0,0.4500991]
[1746667982883,0.001,98074.0,98073.0,0.4500991]
[1746667983385,0.168,98317.0,98091.0,0.2038617]
[1746667983386,0.3057961,98092.0,98091.0,0.2038617]
[1746667983685,0.2548143,98098.0,98097.0,0.203845]
[1746667984080,0.4228143,98098.0,98097.0,0.307945]
[1746667984787,0.4228143,98098.0,98097.0,0.413245]
[1746667984987,0.4298143,98098.0,98097.0,0.414245]
[1746667985284,0.2618143,98098.0,98097.0,0.414245]
[1746667985473,0.2688143,98098.0,98097.0,0.415245]
[1746667986684,0.2618143,98098.0,98097.0,0.414245]
[1746667986878,0.2318143,98098.0,98097.0,0.414245]
[1746667987278,0.2258143,98098.0,98097.0,0.415245]
[1746667987977,0.1057,98101.0,98097.0,0.2094]
[1746667988182,0.001,98106.0,98105.0,0.2038326]
[1746667988689,0.001,98106.0,98105.0,0.3139326]
[1746667988884,0.2048305,98106.0,98105.0,0.40168209]
[1746667990277,0.2048305,98106.0,98105.0,0.40368209]
[1746667990683,0.2048305,98106.0,98105.0,0.29808209]
[1746667990887,0.2048305,98106.0,98105.0,0.29708209]
[1746667991085,0.4843305,98106.0,98105.0,0.30008209]
[1746667991786,0.4843305,98106.0,98105.0,0.29708209]
[1746667991990,0.4863305,98106.0,98105.0,0.29808209]
[1746667992691,0.4833305,98106.0,98105.0,0.29708209]
[1746667992893,0.4833305,98106.0,98105.0,0.29808209]
[1746667993190,0.4833305,98106.0,98105.0,0.29708209]
[1746667994391,0.4863305,98106.0,98105.0,0.29708209]
[1746667994588,0.4863305,98106.0,98105.0,0.001]
[1746667994786,0.6482886,98106.0,98103.0,0.0509587]
[1746667994989,0.6992467,98106.0,98105.0,0.001]
[1746667995293,0.5312467,98106.0,98105.0,0.001]
[1746667995593,0.5312467,98106.0,98105.0,0.2038326]
[1746667995793,0.2038409,98101.0,98100.0,0.3608]
[1746667995980,0.2038409,98101.0,98100.0,0.564643]
[1746667996184,0.3718409,98101.0,98100.0,0.564643]
[1746667997286,0.3748409,98101.0,98100.0,0.564643]
[1746667997888,0.3758409,98101.0,98100.0,0.564643]
[1746667998084,0.3788409,98101.0,98100.0,0.565643]
[1746667999298,0.3748409,98101.0,98100.0,0.565643]
[1746667999496,0.3778409,98101.0,98100.0,0.565643]
[1746667999898,0.3748409,98101.0,98100.0,0.565643]
[1746668000099,0.3778409,98101.0,98100.0,0.565643]
[1746668000696,0.3778409,98101.0,98100.0,0.771143]
[1746668001197,0.2068409,98101.0,98100.0,0.770143]
[1746668001393,0.2098409,98101.0,98100.0,0.771143]
[1746668002002,0.2068409,98101.0,98100.0,0.770143]
[1746668002203,0.2078409,98101.0,98100.0,0.773143]
[1746668002702,0.2048409,98101.0,98100.0,0.775143]
[1746668004300,0.001,98101.0,98100.0,0.775143]
[1746668004497,0.2048409,98101.0,98100.0,0.8261032]
[1746668005490,0.2048409,98101.0,98100.0,0.3658]
[1746668005802,0.2048409,98101.0,98081.0,0.3608]
[1746668005803,0.2038804,98082.0,98081.0,0.3608]
[1746668006099,0.3718804,98082.0,98081.0,0.3608]
[1746668006404,0.2038991,98073.0,98072.0,0.61720158]
[1746668008001,0.2038991,98073.0,98072.0,0.62020158]
[1746668008698,0.2048991,98073.0,98072.0,0.62320158]
[1746668009099,0.1748991,98073.0,98072.0,0.62320158]
[1746668011307,0.1748991,98073.0,98072.0,0.57222648]
[1746668011606,0.2476991,98073.0,98072.0,0.57223068]
[1746668011805,0.1748991,98073.0,98072.0,0.57223068]
[1746668012395,0.1748991,98073.0,98072.0,0.72373068]
[1746668014906,0.1748991,98073.0,98072.0,0.70587369]
[1746668015307,0.2506991,98073.0,98072.0,0.70587369]
[1746668016522,0.2506991,98073.0,98072.0,0.55437369]
[1746668017517,0.3276991,98073.0,98072.0,0.55437369]
[1746668018210,0.3276991,98073.0,98072.0,0.26807369]
[1746668020408,0.3276991,98073.0,98072.0,0.0745]
[1746668020710,0.203924,98061.0,98051.0,0.20547435]
[1746668020914,0.2039386,98054.0,98053.0,0.6216407]
[1746668021506,0.3518386,98054.0,98053.0,0.6216407]
[1746668021907,0.2039427,98052.0,98051.0,0.00152985]
[1746668022405,0.3719427,98052.0,98051.0,0.00152985]
[1746668022710,0.3719427,98052.0,98042.0,0.1495]
[1746668022711,0.2039552,98046.0,98042.0,0.1495]
[1746668022913,0.2039552,98046.0,98045.0,0.38896904]
[1746668024207,0.5647552,98046.0,98045.0,0.00101993]
[1746668024409,0.2039552,98046.0,98045.0,0.00101993]
[1746668024609,0.3069472,98046.0,98045.0,0.00201993]
[1746668025014,0.6687472,98046.0,98045.0,0.00901993]
[1746668025214,0.8367472,98046.0,98045.0,0.00492756]
[1746668027119,1.0867472,98046.0,98045.0,6e-08]
[1746668027307,1.0867472,98046.0,98037.0,0.00153003]
[1746668027308,0.2039719,98038.0,98037.0,9e-08]
[1746668027509,0.5647719,98038.0,98037.0,9e-08]
[1746668027714,0.91677191,98038.0,98037.0,9e-08]
[1746668028117,1.28357191,98038.0,98037.0,9e-08]
[1746668028421,1.28457191,98038.0,98037.0,9e-08]
[1746668028824,0.2040176,98016.0,98015.0,0.00102025]
[1746668029319,0.3720176,98016.0,98015.0,0.00102025]
[1746668029521,0.3720176,98016.0,98015.0,0.14662025]
[1746668029724,0.4460176,98016.0,98015.0,0.35063995]
[1746668029920,0.4460176,98016.0,98015.0,0.14662025]
[1746668030224,0.2790176,98016.0,98015.0,0.14662025]
[1746668030523,0.2050176,98016.0,98015.0,0.14662025]
[1746668031115,0.2060176,98016.0,98015.0,0.15162025]
[1746668031532,0.2060176,98016.0,98015.0,0.35563995]
[1746668032213,0.2060176,98016.0,98015.0,0.31962025]
[1746668033021,0.2801176,98016.0,98015.0,0.31962025]
[1746668033326,0.2801176,98016.0,98015.0,0.15162025]
[1746668036627,0.2060176,98016.0,98015.0,0.15162025]
[1746668037620,0.2754176,98016.0,98015.0,0.08012025]
[1746668038426,0.2754176,98016.0,98015.0,0.14852025]
[1746668039127,0.4434176,98016.0,98015.0,0.14852025]
[1746668039329,0.3740176,98016.0,98015.0,0.14852025]
[1746668040331,0.2060176,98016.0,98015.0,0.35253995]
[1746668044546,0.2060176,98016.0,98015.0,0.14852025]
[1746668045430,0.2050176,98016.0,98015.0,0.14352025]
[1746668045736,0.2060176,98016.0,98015.0,0.33267157]
[1746668045929,0.2060176,98016.0,98015.0,0.12865187]
[1746668046129,0.2060176,98016.0,98015.0,0.33267157]
[1746668046335,0.2060176,98016.0,98015.0,0.12865187]
[1746668046546,0.2060176,98016.0,98015.0,0.33267157]
[1746668046727,0.2060176,98016.0,98015.0,0.12865187]
[1746668047625,0.2060176,98016.0,98015.0,0.33267157]
[1746668047828,0.2060176,98016.0,98015.0,0.12865187]
[1746668048426,0.2060176,98016.0,98015.0,0.003]
[1746668048634,0.2060176,98016.0,98002.0,7e-08]
[1746668048635,0.2040447,98003.0,98002.0,7e-08]
[1746668048835,0.5648447,98003.0,98002.0,7e-08]
[1746668049035,0.2040489,98001.0,98000.0,7e-08]
[1746668049235,0.37957992,98001.0,98000.0,7e-08]
[1746668049631,0.87681992,98001.0,98000.0,7e-08]
[1746668049830,0.62681992,98001.0,98000.0,7e-08]
[1746668050239,0.63081992,98001.0,98000.0,7e-08]
[1746668051239,0.204078,97987.0,97986.0,0.03222587]
[1746668051430,0.2040801,97986.0,97983.0,0.0712]
[1746668051630,0.3492801,97986.0,97983.0,0.0712]
[1746668051825,0.204103,97975.0,97974.0,0.02376632]
[1746668052334,0.2041072,97973.0,97972.0,0.0719]
[1746668053240,0.2041155,97969.0,97968.0,0.0679]
[1746668053932,0.2041155,97969.0,97968.0,0.2720176]
[1746668054540,0.2041124,97971.0,97970.0,0.2551372]
[1746668054930,0.2041124,97971.0,97970.0,0.3971372]
[1746668055942,0.001,97975.0,97970.0,0.3971372]
[1746668055943,0.2041069,97974.0,97973.0,0.2041051]
[1746668056145,0.2041069,97974.0,97973.0,0.5196051]
[1746668056835,0.0510252,97976.0,97975.0,0.2041009]
[1746668056836,0.2041026,97976.0,97975.0,0.2041009]
[1746668057129,0.2041026,97976.0,97975.0,0.7329009]
[1746668057341,0.2041026,97976.0,97975.0,0.8804009]
[1746668058237,0.2041026,97976.0,97975.0,0.6763]
[1746668058635,0.2041026,97976.0,97975.0,0.5288]
[1746668059035,0.7089026,97976.0,97975.0,0.168]
[1746668059344,0.2041176,97968.0,97967.0,0.00153112]
[1746668060239,0.3481176,97968.0,97967.0,0.00153112]
[1746668060440,0.3481176,97968.0,97967.0,0.20565082]
[1746668060841,0.3571176,97968.0,97967.0,0.20565082]
[1746668061550,0.3681176,97968.0,97967.0,0.20565082]
[1746668061946,0.2953176,97968.0,97967.0,0.20565082]
[1746668062246,0.2923176,97968.0,97967.0,0.27535082]
[1746668062547,0.2893176,97968.0,97967.0,0.27535082]
[1746668063347,0.2843176,97968.0,97967.0,0.27535082]
[1746668064145,0.2843176,97968.0,97967.0,0.07123112]
[1746668064344,0.2843176,97968.0,97967.0,0.00153112]
[1746668065144,0.4523176,97968.0,97967.0,0.00153112]
[1746668065449,0.4523176,97968.0,97967.0,0.07493112]
[1746668066350,0.4523176,97968.0,97967.0,0.14183112]
[1746668068345,0.4523176,97968.0,97967.0,0.34595082]
[1746668068750,0.4523176,97968.0,97967.0,0.20565082]
[1746668069151,0.2843176,97968.0,97967.0,0.00153112]
[1746668069645,0.3863936,97968.0,97967.0,2e-08]
[1746668070041,0.5543936,97968.0,97967.0,2e-08]
[1746668071450,0.2041426,97956.0,97955.0,0.00102087]
[1746668071850,0.2041739,97941.0,97940.0,0.0644]
[1746668072251,0.2041739,97941.0,97940.0,0.268576]
[1746668073149,0.2111739,97941.0,97940.0,0.2922617]
[1746668073948,0.2111739,97941.0,97940.0,0.0880857]
[1746668074153,0.2111739,97941.0,97940.0,0.0644]
[1746668074550,0.2061739,97941.0,97940.0,0.08854351]
[1746668074854,0.2101739,97941.0,97940.0,0.08854351]
[1746668075349,0.006,97941.0,97940.0,0.39482351]
[1746668075655,0.0510331,97961.0,97954.0,0.2041384]
[1746668075849,0.2551826,97955.0,97954.0,0.2551735]
[1746668076751,0.2551826,97955.0,97954.0,0.2041384]
[1746668076951,0.2651826,97955.0,97954.0,0.2041384]
[1746668078358,0.0510303,97967.0,97966.0,0.2041218]
[1746668078655,0.0510303,97967.0,97966.0,0.5649218]
[1746668079156,0.3061918,97967.0,97966.0,0.3608]
[1746668079547,0.3061918,97967.0,97966.0,0.5659218]
[1746668081244,0.99016,98034.0,97959.0,0.3608]
[1746668081447,0.99016,98034.0,97980.0,0.2040926]
[1746668081448,0.2676924,97981.0,97980.0,0.2040926]
[1746668081649,0.11641212,98000.0,97979.0,0.0510232]
[1746668081650,0.0510135,97999.0,97984.0,0.2040843]
[1746668081850,0.2550688,98002.0,98001.0,0.2040351]
[1746668082053,0.11791212,98020.0,97979.0,0.44324]
[1746668082054,0.0636,98008.0,98007.0,0.2040364]
[1746668082252,0.0510077,98010.0,98009.0,0.204026]
[1746668082453,0.0510077,98010.0,98009.0,0.564826]
[1746668083648,0.2550459,98010.0,98009.0,0.564826]
[1746668084056,0.3608,98043.0,98013.0,0.0510055]
[1746668084252,1.0517,98052.0,98028.0,0.2039783]
[1746668084253,0.2730968,98029.0,98028.0,0.2039783]
[1746668085153,0.0509968,98031.0,98028.0,0.2039783]
[1746668085154,0.0524841,98055.0,98028.0,0.10201199]
[1746668085359,0.0524841,98055.0,98017.0,0.5100373]
[1746668085360,0.1670626,98046.0,98045.0,0.5647573]
[1746668085754,0.2039514,98048.0,98047.0,0.2039511]
[1746668087361,0.2054399,98055.0,98054.0,0.2039386]
[1746668087555,0.2054399,98055.0,98054.0,0.5647386]
[1746668088155,0.0015,98055.0,98054.0,0.7327386]
[1746668088361,0.0731692,98072.0,98062.0,0.2548979]
[1746668088362,0.2039208,98063.0,98062.0,0.2548979]
[1746668088563,0.2039208,98063.0,98062.0,0.2039178]
[1746668089659,0.2089208,98063.0,98062.0,0.2049178]
[1746668090362,0.2089208,98063.0,98062.0,0.18705843]
[1746668090664,0.2089208,98063.0,98062.0,0.001]
[1746668090854,0.2159208,98063.0,98062.0,0.002]
[1746668091263,0.2807208,98063.0,98062.0,0.002]
[1746668097458,0.2757208,98063.0,98062.0,0.001]
[1746668097758,0.2807208,98063.0,98062.0,0.002]
[1746668098062,0.2797208,98063.0,98062.0,0.002]
[1746668099160,0.4477208,98063.0,98062.0,0.002]
[1746668099567,0.4477208,98063.0,98062.0,0.1308]
[1746668100164,0.4417208,98063.0,98062.0,0.1308]
[1746668100361,0.4487208,98063.0,98062.0,0.1308]
[1746668100963,0.4487208,98063.0,98062.0,0.002]
[1746668101165,0.2807208,98063.0,98062.0,0.002]
[1746668101369,0.2737208,98063.0,98062.0,0.001]
[1746668101572,0.2747208,98063.0,98062.0,0.001]
[1746668101962,0.2747208,98063.0,98054.0,0.5647344]
[1746668101963,0.2039365,98055.0,98054.0,0.5647344]
[1746668103169,0.2039365,98055.0,98054.0,0.6274344]
[1746668104669,0.2039365,98055.0,98054.0,0.6294344]
[1746668106268,0.2039365,98055.0,98054.0,0.3628]
[1746668106473,0.6321365,98055.0,98054.0,0.002]
[1746668107065,0.8670365,98055.0,98054.0,0.002]
[1746668107269,0.5062365,98055.0,98054.0,0.002]
[1746668107477,0.2039469,98050.0,98049.0,0.2039485]
[1746668108062,0.009,98055.0,98054.0,0.2039386]
[1746668108377,0.2039365,98062.0,98061.0,0.2548884]
[1746668109668,0.3059013,98062.0,98061.0,0.2548884]
[1746668111078,0.3059013,98062.0,98061.0,0.2558884]
[1746668111279,0.3059013,98062.0,98061.0,0.2588884]
[1746668111472,0.3059013,98062.0,98061.0,0.2578884]
[1746668111776,0.3059013,98062.0,98061.0,0.2588884]
[1746668113480,0.3059013,98062.0,98061.0,0.2079098]
[1746668114771,0.3059013,98062.0,98061.0,0.2069098]
[1746668115176,0.3059013,98062.0,98061.0,0.2059098]
[1746668117974,0.3059013,98062.0,98061.0,0.2069098]
[1746668118371,0.3059013,98062.0,98061.0,0.2059098]
[1746668120982,0.3059013,98062.0,98061.0,0.2069098]
[1746668121280,0.3059013,98062.0,98061.0,0.2079098]
[1746668121584,0.3059013,98062.0,98061.0,0.2039098]
[1746668121878,0.3059013,98062.0,98061.0,0.2079098]
[1746668122780,0.2039146,98068.0,98067.0,0.2039115]
[1746668122973,0.2039146,98068.0,98067.0,0.5647115]
[1746668123171,0.0509754,98072.0,98071.0,0.2548744]
[1746668123375,0.0509754,98072.0,98071.0,0.4448744]
[1746668124381,0.0579754,98072.0,98071.0,0.4458744]
[1746668124582,0.2618766,98072.0,98071.0,0.4458744]
[1746668124778,0.014,98072.0,98071.0,0.4468744]
[1746668124982,0.2179012,98072.0,98071.0,0.4468744]
[1746668125182,0.2179012,98072.0,98071.0,0.6148744]
[1746668125372,0.0509747,98074.0,98071.0,0.6128744]
[1746668125577,0.2039012,98072.0,98071.0,0.6128744]
[1746668125984,0.2039012,98072.0,98071.0,0.6148744]
[1746668126685,0.2039012,98072.0,98071.0,0.36]
[1746668126986,0.2039012,98072.0,98071.0,0.5639032]
[1746668127175,0.2039012,98072.0,98071.0,0.3969032]
[1746668127590,0.2039012,98072.0,98071.0,0.3959032]
[1746668130089,0.28372468,98072.0,98071.0,0.3959032]
[1746668132190,0.34602468,98072.0,98071.0,0.37804606]
[1746668132594,0.2662012,98072.0,98071.0,0.37804606]
[1746668133292,0.2662012,98072.0,98071.0,0.73884606]
[1746668134992,0.34602468,98072.0,98071.0,0.73884606]
[1746668136394,0.28372468,98072.0,98071.0,0.70211113]
[1746668138294,0.37697384,98072.0,98071.0,0.70211113]
[1746668140294,0.17307264,98072.0,98071.0,0.70311113]
[1746668140487,0.16930699,98072.0,98071.0,0.80507912]
[1746668140888,0.07605783,98072.0,98071.0,0.80507912]
[1746668141089,0.07605783,98072.0,98071.0,0.97307912]
[1746668141289,0.001,98076.0,98075.0,0.2038949]
[1746668141599,0.001,98076.0,98075.0,0.5646949]
[1746668141897,0.09324916,98088.0,98087.0,0.20387]
[1746668142098,0.09324916,98088.0,98087.0,0.56467]
[1746668142397,0.29711786,98088.0,98087.0,0.5468162]
[1746668142602,0.09324916,98088.0,98087.0,0.5468162]
[1746668142997,0.29711706,98088.0,98087.0,0.6105162]
[1746668143299,0.29811706,98088.0,98087.0,0.6105162]
[1746668144192,0.2058679,98088.0,98087.0,0.6105162]
[1746668145502,0.002,98088.0,98087.0,0.7124642]
[1746668146100,0.2058679,98088.0,98087.0,0.7124642]
[1746668146897,0.2058679,98088.0,98087.0,0.7943442]
[1746668151206,0.2058679,98088.0,98087.0,0.6923962]
[1746668155102,0.28565786,98088.0,98087.0,0.6923962]
[1746668155296,0.08178996,98088.0,98087.0,0.6923962]
[1746668155509,0.0509617,98099.0,98093.0,0.0509642]
[1746668155708,0.0509617,98099.0,98098.0,0.564645]
[1746668155906,0.254815,98099.0,98098.0,0.564645]
[1746668156713,0.270815,98099.0,98098.0,0.58516785]
[1746668157199,0.324715,98099.0,98098.0,0.58516785]
[1746668157404,0.332715,98099.0,98098.0,0.58616785]
[1746668158412,0.332715,98099.0,98098.0,0.65156785]
[1746668158802,0.324715,98099.0,98098.0,0.65156785]
[1746668159003,0.332715,98099.0,98098.0,0.65256785]
[1746668159620,0.332715,98099.0,98098.0,0.44872285]
[1746668159822,0.332715,98099.0,98098.0,0.38332285]
[1746668160722,0.394615,98099.0,98098.0,0.38332285]
[1746668161023,0.455115,98099.0,98098.0,0.38332285]
[1746668161321,0.623115,98099.0,98098.0,0.38332285]
[1746668162722,0.619115,98099.0,98098.0,0.38232285]
[1746668162919,0.619115,98099.0,98098.0,0.38132285]
[1746668162920,0.615115,98099.0,98098.0,0.38132285]
[1746668163113,0.611115,98099.0,98098.0,0.38132285]
[1746668163313,0.447115,98099.0,98098.0,0.38132285]
[1746668163614,0.443115,98099.0,98098.0,0.38132285]
[1746668163813,0.446115,98099.0,98098.0,0.02052285]
[1746668164019,0.2038533,98096.0,98095.0,0.2038531]
[1746668164418,0.3274533,98096.0,98095.0,0.2038531]
[1746668165011,0.2038533,98095.0,98094.0,0.3608]